fUSD/lending_fUSD_20241225
["ID","MTS","AMOUNT","RATE_DAILY","PERIOD"]
[346612678,1735125124689,-251.11554569,0.00011834,2]
[346612679,1735125124718,-273.09445431,0.00011834,2]
[346612680,1735125124729,-550.32,0.00011834,2]
[346612681,1735125124739,-500.0,0.00011834,2]
[346612682,1735125124748,-500.0,0.00011834,2]
[346612683,1735125124761,-134.28954569,0.00011834,2]
[346612684,1735125124788,-268.97520764,0.00011834,2]
[346612685,1735125124800,-1250.52524667,0.00011834,2]
[346612686,1735125124809,-1725.59,0.00011834,2]
[346612687,1735125124819,-500.0,0.00011834,2]
[346612688,1735125124828,-1492.73,0.00011834,2]
[346612689,1735125124839,-648.59,0.00011835,2]
[346612690,1735125124848,-785.11,0.00011835,2]
[346612691,1735125124858,-500.0,0.00011835,2]
[346612692,1735125124867,-500.0,0.00011835,2]
[346612693,1735125124877,-500.0,0.00011835,2]
[346612694,1735125124886,-557.11,0.00011835,2]
[346612695,1735125124895,-500.0,0.00011835,2]
[346612696,1735125124905,-276.55464606,0.00011835,2]
[346612697,1735125124915,-500.0,0.00011835,2]
[346612698,1735125124925,-500.0,0.00011835,2]
[346612699,1735125124934,-500.0,0.00011835,2]
[346612700,1735125124943,-728.96,0.00011835,2]
[346612701,1735125124952,-500.0,0.00011835,2]
[346612702,1735125124961,-500.0,0.00011835,2]
[346612703,1735125124972,-669.56,0.00011835,2]
[346612704,1735125124981,-500.0,0.00011835,2]
[346612705,1735125124991,-726.31,0.00011835,2]
[346612706,1735125125000,-538.54,0.00011835,2]
[346612707,1735125125009,-500.0,0.00011835,2]
[346612708,1735125125018,-777.03,0.00011835,2]
[346612709,1735125125027,-500.0,0.00011835,2]
[346612710,1735125125036,-500.0,0.00011835,2]
[346612711,1735125125046,-672.42,0.00011835,2]
[346612712,1735125125055,-500.0,0.00011835,2]
[346612713,1735125125065,-500.0,0.00011835,2]
[346612714,1735125125074,-412.85183739,0.00011835,2]
[346612715,1735125125083,-402.11826988,0.00011835,2]
[346612716,1735125125095,-184.12173012,0.00011835,2]
[346612717,1735125125105,-867.6,0.00011835,2]
[346612718,1735125125115,-859.5,0.00011835,2]
[346612719,1735125125125,-1831.55,0.00011835,2]
[346612720,1735125125134,-500.0,0.00011835,2]
[346612721,1735125125144,-572.68,0.00011835,2]
[346612722,1735125125153,-693.11,0.00011835,2]
[346612723,1735125125163,-500.0,0.00011835,2]
[346612724,1735125125173,-612.5,0.00011835,2]
[346612725,1735125125182,-1077.16,0.00011835,2]
[346612726,1735125125192,-750.32,0.00011835,2]
[346612727,1735125125201,-623.05,0.00011835,2]
[346612728,1735125125211,-500.0,0.00011835,2]
[346612729,1735125125223,-986.76,0.00011835,2]
[346612730,1735125125233,-500.0,0.00011835,2]
[346612731,1735125125245,-540.07,0.00011835,2]
[346612732,1735125125256,-500.0,0.00011835,2]
[346612733,1735125125265,-500.0,0.00011835,2]
[346612734,1735125125275,-980.7,0.00011835,2]
[346612735,1735125125285,-1057.52,0.00011835,2]
[346612736,1735125125295,-156.35724028,0.00011835,2]
[346612737,1735125459139,-300.0,9.816e-05,2]
[346612738,1735125459203,-5124.0635,9.817e-05,2]
[346612739,1735125459266,-308.7417,9.817e-05,2]
[346612740,1735125459611,-500.0,9.916e-05,2]
[346612741,1735125459674,-500.0,9.916e-05,2]
[346612742,1735125459736,-500.0,9.916e-05,2]
[346612743,1735125459798,-500.0,9.916e-05,2]
[346612744,1735125459858,-500.0,9.916e-05,2]
[346612745,1735125459919,-500.0,9.916e-05,2]
[346612746,1735125459979,-500.0,9.916e-05,2]
[346612747,1735125460043,-500.0,9.916e-05,2]
[346612748,1735125460108,-500.0,9.916e-05,2]
[346612749,1735125460169,-500.0,9.916e-05,2]
[346612750,1735125460231,-500.0,9.916e-05,2]
[346612751,1735125460294,-500.0,9.916e-05,2]
[346612752,1735125460360,-646.48,9.916e-05,2]
[346612753,1735125460424,-565.65,9.916e-05,2]
[346612754,1735125460488,-546.3,9.916e-05,2]
[346612755,1735125460553,-500.0,9.916e-05,2]
[346612756,1735125460617,-586.71,9.916e-05,2]
[346612757,1735125460682,-500.0,9.916e-05,2]
[346612758,1735125460745,-505.85,9.916e-05,2]
[346612759,1735125460806,-500.0,9.916e-05,2]
[346612760,1735125460868,-500.0,9.916e-05,2]
[346612761,1735125460930,-500.0,9.916e-05,2]
[346612762,1735125460993,-500.0,9.916e-05,2]
[346612763,1735125461057,-500.0,9.916e-05,2]
[346612764,1735125461118,-500.0,9.916e-05,2]
[346612765,1735125461178,-500.0,9.916e-05,2]
[346612766,1735125461241,-602.52,9.916e-05,2]
[346612767,1735125461302,-539.62,9.916e-05,2]
[346612768,1735125461365,-736.26,9.916e-05,2]
[346612769,1735125461428,-675.52,9.916e-05,2]
[346612770,1735125461489,-500.0,9.916e-05,2]
[346612771,1735125461557,-555.18,9.916e-05,2]
[346612772,1735125461635,-500.0,9.916e-05,2]
[346612773,1735125461714,-905.73,9.916e-05,2]
[346612774,1735125461777,-1209.74,9.916e-05,2]
[346612775,1735125461839,-573.85,9.916e-05,2]
[346612776,1735125461900,-895.91,9.916e-05,2]
[346612777,1735125461960,-903.93,9.916e-05,2]
[346612778,1735125462023,-769.14,9.916e-05,2]
[346612779,1735125462086,-500.0,9.916e-05,2]
[346612780,1735125462154,-580.69,9.916e-05,2]
[346612781,1735125462230,-500.0,9.916e-05,2]
[346612782,1735125462306,-500.0,9.916e-05,2]
[346612783,1735125462372,-681.83,9.916e-05,2]
[346612784,1735125462436,-677.32,9.916e-05,2]
[346612785,1735125462496,-553.47,9.916e-05,2]
[346612786,1735125462555,-537.62,9.916e-05,2]
[346612787,1735125462616,-500.0,9.916e-05,2]
[346612788,1735125462675,-500.0,9.916e-05,2]
[346612789,1735125462737,-840.52,9.916e-05,2]
[346612790,1735125462798,-500.0,9.916e-05,2]
[346612791,1735125462861,-9318.3548,0.00010091,2]
[346612792,1735125522642,-500.0,9.916e-05,2]
[346612793,1735125522700,-500.0,9.916e-05,2]
[346612794,1735125522754,-500.0,9.916e-05,2]
[346612795,1735125522809,-500.0,9.916e-05,2]
[346612796,1735125522867,-637.03,9.916e-05,2]
[346612797,1735125522921,-500.0,9.916e-05,2]
[346612798,1735125522976,-500.0,9.916e-05,2]
[346612799,1735125523034,-500.0,9.916e-05,2]
[346612800,1735125523094,-500.0,9.916e-05,2]
[346612801,1735125523150,-500.0,9.916e-05,2]
[346612802,1735125523207,-503.02,9.916e-05,2]
[346612803,1735125523266,-300.0,0.0001009,2]
[346612804,1735125523324,-47593.3688,0.00010091,2]
[346612805,1735125523383,-202.97,0.00010091,2]
[346612806,1735125523440,-985.21,0.00010189,2]
[346612807,1735125523501,-500.0,0.00010189,2]
[346612808,1735125523561,-740.22,0.00010189,2]
[346612809,1735125523622,-707.5,0.00010189,2]
[346612810,1735125523682,-289.901841,0.00010189,2]
[346612811,1735125523740,-823.23,0.00010189,2]
[346612812,1735125523802,-261.980764,0.00010189,2]
[346612813,1735125523862,-1083.58,0.00010189,2]
[346612814,1735125523924,-535.91,0.00010189,2]
[346612815,1735125523986,-2291.31,0.00010189,2]
[346612816,1735125524047,-794.28,0.00010189,2]
[346612817,1735125524116,-3771.85,0.00010189,2]
[346612818,1735125524176,-2638.9,0.00010189,2]
[346612819,1735125524239,-500.0,0.00010189,2]
[346612820,1735125524553,-1703.35,0.00010189,2]
[346612821,1735125524621,-8728.74,0.00010189,2]
[346612822,1735125524679,-500.0,0.00010189,2]
[346612823,1735125524734,-500.0,0.00010189,2]
[346612824,1735125524790,-156.676808,0.0001019,2]
[346612825,1735125524846,-500.0,0.0001019,2]
[346612826,1735125524901,-500.0,0.0001019,2]
[346612827,1735125524962,-500.0,0.0001019,2]
[346612828,1735125525017,-500.0,0.0001019,2]
[346612829,1735125525076,-500.0,0.0001019,2]
[346612830,1735125525136,-500.0,0.0001019,2]
[346612831,1735125525194,-500.0,0.0001019,2]
[346612832,1735125525254,-500.0,0.0001019,2]
[346612833,1735125525312,-500.0,0.0001019,2]
[346612834,1735125525374,-500.0,0.0001019,2]
[346612835,1735125525432,-500.0,0.0001019,2]
[346612836,1735125525492,-500.0,0.0001019,2]
[346612837,1735125525553,-500.0,0.0001019,2]
[346612838,1735125525614,-646.48,0.0001019,2]
[346612839,1735125525676,-565.65,0.0001019,2]
[346612840,1735125525737,-1060.51,0.0001019,2]
[346612841,1735125525803,-592.67,0.0001019,2]
[346612842,1735125525868,-546.3,0.0001019,2]
[346612843,1735125525932,-500.0,0.0001019,2]
[346612844,1735125525995,-500.0,0.0001019,2]
[346612845,1735125526060,-1114.22,0.0001019,2]
[346612846,1735125526125,-790.89,0.0001019,2]
[346612847,1735125526188,-586.71,0.0001019,2]
[346612848,1735125526252,-606.09791021,0.0001019,2]
[346612849,1735125526313,-505.85,0.0001019,2]
[346612850,1735125526383,-500.0,0.0001019,2]
[346612851,1735125526446,-948.61,0.0001019,2]
[346612852,1735125526511,-500.0,0.0001019,2]
[346612853,1735125526576,-500.0,0.0001019,2]
[346612854,1735125526641,-500.0,0.0001019,2]
[346612855,1735125526706,-4156.42,0.0001019,2]
[346612856,1735125526771,-500.0,0.0001019,2]
[346612857,1735125526833,-500.0,0.0001019,2]
[346612858,1735125526894,-1150.6,0.0001019,2]
[346612859,1735125526956,-500.0,0.0001019,2]
[346612860,1735125527024,-500.0,0.0001019,2]
[346612861,1735125527085,-500.0,0.0001019,2]
[346612862,1735125527145,-1602.43,0.0001019,2]
[346612863,1735125527205,-602.52,0.0001019,2]
[346612864,1735125527267,-3226.7,0.0001019,2]
[346612865,1735125527326,-539.62,0.0001019,2]
[346612866,1735125527385,-1300.39,0.0001019,2]
[346612867,1735125527446,-1316.13,0.0001019,2]
[346612868,1735125527504,-1489.11,0.0001019,2]
[346612869,1735125527562,-736.26,0.0001019,2]
[346612870,1735125527620,-675.52,0.0001019,2]
[346612871,1735125527684,-500.0,0.0001019,2]
[346612872,1735125527743,-1509.74,0.0001019,2]
[346612873,1735125527802,-555.18,0.0001019,2]
[346612874,1735125527858,-2024.54,0.0001019,2]
[346612875,1735125527915,-2416.52,0.0001019,2]
[346612876,1735125527976,-905.73,0.0001019,2]
[346612877,1735125528035,-1209.74,0.0001019,2]
[346612878,1735125528104,-2119.07,0.0001019,2]
[346612879,1735125528169,-500.0,0.0001019,2]
[346612880,1735125528237,-573.85,0.0001019,2]
[346612881,1735125528306,-1720.47,0.0001019,2]
[346612882,1735125528373,-895.91,0.0001019,2]
[346612883,1735125528437,-903.93,0.0001019,2]
[346612884,1735125528502,-723.29,0.0001019,2]
[346612885,1735125528564,-769.14,0.0001019,2]
[346612886,1735125528628,-500.0,0.0001019,2]
[346612887,1735125528689,-500.0,0.0001019,2]
[346612888,1735125528752,-580.69,0.0001019,2]
[346612889,1735125528813,-500.0,0.0001019,2]
[346612890,1735125528877,-500.0,0.0001019,2]
[346612891,1735125528938,-500.0,0.0001019,2]
[346612892,1735125528997,-1231.21,0.0001019,2]
[346612893,1735125529062,-681.83,0.0001019,2]
[346612894,1735125529130,-1552.57,0.0001019,2]
[346612895,1735125529195,-677.32,0.0001019,2]
[346612896,1735125529260,-1301.82,0.0001019,2]
[346612897,1735125529324,-553.47,0.0001019,2]
[346612898,1735125529390,-833.28,0.0001019,2]
[346612899,1735125529456,-674.53,0.0001019,2]
[346612900,1735125529523,-537.62,0.0001019,2]
[346612901,1735125529586,-1109.05,0.0001019,2]
[346612902,1735125529648,-840.52,0.0001019,2]
[346612903,1735125529707,-500.0,0.0001019,2]
[346612904,1735125529767,-2578.19,0.0001019,2]
[346612905,1735125529830,-500.0,0.0001019,2]
[346612906,1735125529892,-19270.64,0.0001019,2]
[346612907,1735125529952,-500.0,0.0001019,2]
[346612908,1735125530013,-500.0,0.0001019,2]
[346612909,1735125530076,-637.03,0.0001019,2]
[346612910,1735125530133,-1980.73,0.0001019,2]
[346612911,1735125530192,-500.0,0.0001019,2]
[346612912,1735125530252,-1038.04,0.0001019,2]
[346612913,1735125530311,-514.56,0.0001019,2]
[346612914,1735125530374,-500.0,0.0001019,2]
[346612915,1735125530437,-500.0,0.0001019,2]
[346612916,1735125530499,-503.02,0.0001019,2]
[346612917,1735125530561,-553.55,0.00010314,2]
[346612918,1735125530622,-985.21,0.00010463,2]
[346612919,1735125530682,-500.0,0.00010463,2]
[346612920,1735125530742,-740.22,0.00010463,2]
[346612921,1735125530802,-707.5,0.00010463,2]
[346612922,1735125530860,-289.901841,0.00010463,2]
[346612923,1735125530919,-823.23,0.00010463,2]
[346612924,1735125530982,-261.980764,0.00010463,2]
[346612925,1735125531043,-1083.58,0.00010463,2]
[346612926,1735125531105,-535.91,0.00010463,2]
[346612927,1735125531162,-2291.31,0.00010463,2]
[346612928,1735125531220,-794.28,0.00010463,2]
[346612929,1735125531283,-1069.2,0.00010463,2]
[346612930,1735125531344,-3771.85,0.00010463,2]
[346612931,1735125531406,-2638.9,0.00010463,2]
[346612932,1735125531468,-500.0,0.00010463,2]
[346612933,1735125531529,-500.0,0.00010463,2]
[346612934,1735125531589,-4310.89,0.00010463,2]
[346612935,1735125531646,-703.41,0.00010463,2]
[346612936,1735125531704,-1703.35,0.00010463,2]
[346612937,1735125531764,-1668.51,0.00010463,2]
[346612938,1735125531825,-8728.74,0.00010463,2]
[346612939,1735125531886,-1468.11,0.00010463,2]
[346612940,1735125531947,-500.0,0.00010463,2]
[346612941,1735125532007,-699.53,0.00010463,2]
[346612942,1735125532066,-500.0,0.00010463,2]
[346612943,1735125532124,-500.0,0.00010463,2]
[346612944,1735125532180,-500.0,0.00010463,2]
[346612945,1735125532238,-500.0,0.00010463,2]
[346612946,1735125532298,-741.72,0.00010463,2]
[346612947,1735125532356,-500.0,0.00010464,2]
[346612948,1735125532415,-500.0,0.00010464,2]
[346612949,1735125532472,-500.0,0.00010464,2]
[346612950,1735125532530,-500.0,0.00010464,2]
[346612951,1735125532585,-500.0,0.00010464,2]
[346612952,1735125532641,-500.0,0.00010464,2]
[346612953,1735125532698,-500.0,0.00010464,2]
[346612954,1735125532755,-500.0,0.00010464,2]
[346612955,1735125532810,-500.0,0.00010464,2]
[346612956,1735125532868,-500.0,0.00010464,2]
[346612957,1735125532923,-500.0,0.00010464,2]
[346612958,1735125532978,-500.0,0.00010464,2]
[346612959,1735125533035,-500.0,0.00010464,2]
[346612960,1735125533095,-500.0,0.00010464,2]
[346612961,1735125533157,-646.48,0.00010464,2]
[346612962,1735125533215,-565.65,0.00010464,2]
[346612963,1735125533273,-1060.51,0.00010464,2]
[346612964,1735125533332,-592.67,0.00010464,2]
[346612965,1735125533390,-546.3,0.00010464,2]
[346612966,1735125533449,-500.0,0.00010464,2]
[346612967,1735125533515,-1114.22,0.00010464,2]
[346612968,1735125533582,-790.89,0.00010464,2]
[346612969,1735125533647,-586.71,0.00010464,2]
[346612970,1735125533706,-505.85,0.00010464,2]
[346612971,1735125533781,-500.0,0.00010464,2]
[346612972,1735125533854,-948.61,0.00010464,2]
[346612973,1735125533929,-500.0,0.00010464,2]
[346612974,1735125533993,-500.0,0.00010464,2]
[346612975,1735125534055,-500.0,0.00010464,2]
[346612976,1735125534114,-4156.42,0.00010464,2]
[346612977,1735125534175,-500.0,0.00010464,2]
[346612978,1735125534233,-500.0,0.00010464,2]
[346612979,1735125534293,-1150.6,0.00010464,2]
[346612980,1735125534352,-500.0,0.00010464,2]
[346612981,1735125534410,-500.0,0.00010464,2]
[346612982,1735125534470,-500.0,0.00010464,2]
[346612983,1735125534531,-1602.43,0.00010464,2]
[346612984,1735125534589,-602.52,0.00010464,2]
[346612985,1735125534647,-3226.7,0.00010464,2]
[346612986,1735125534704,-539.62,0.00010464,2]
[346612987,1735125534758,-1300.39,0.00010464,2]
[346612988,1735125534808,-1316.13,0.00010464,2]
[346612989,1735125534861,-1489.11,0.00010464,2]
[346612990,1735125534914,-736.26,0.00010464,2]
[346612991,1735125534968,-675.52,0.00010464,2]
[346612992,1735125535027,-500.0,0.00010464,2]
[346612993,1735125535088,-1509.74,0.00010464,2]
[346612994,1735125535144,-555.18,0.00010464,2]
[346612995,1735125535198,-2024.54,0.00010464,2]
[346612996,1735125535253,-2416.52,0.00010464,2]
[346612997,1735125535305,-905.73,0.00010464,2]
[346612998,1735125535566,-1209.74,0.00010464,2]
[346612999,1735125535626,-2119.07,0.00010464,2]
[346613000,1735125535681,-500.0,0.00010464,2]
[346613001,1735125535735,-573.85,0.00010464,2]
[346613002,1735125535790,-1720.47,0.00010464,2]
[346613003,1735125535842,-895.91,0.00010464,2]
[346613004,1735125535896,-903.93,0.00010464,2]
[346613005,1735125535952,-723.29,0.00010464,2]
[346613006,1735125536011,-769.14,0.00010464,2]
[346613007,1735125536071,-500.0,0.00010464,2]
[346613008,1735125536133,-500.0,0.00010464,2]
[346613009,1735125536193,-580.69,0.00010464,2]
[346613010,1735125536253,-500.0,0.00010464,2]
[346613011,1735125536318,-500.0,0.00010464,2]
[346613012,1735125536384,-500.0,0.00010464,2]
[346613013,1735125536445,-1231.21,0.00010464,2]
[346613014,1735125536504,-681.83,0.00010464,2]
[346613015,1735125536561,-1552.57,0.00010464,2]
[346613016,1735125536621,-677.32,0.00010464,2]
[346613017,1735125536682,-1301.82,0.00010464,2]
[346613018,1735125536742,-553.47,0.00010464,2]
[346613019,1735125536802,-833.28,0.00010464,2]
[346613020,1735125536864,-674.53,0.00010464,2]
[346613021,1735125536925,-537.62,0.00010464,2]
[346613022,1735125536985,-1109.05,0.00010464,2]
[346613023,1735125537047,-840.52,0.00010464,2]
[346613024,1735125537110,-500.0,0.00010464,2]
[346613025,1735125537170,-2578.19,0.00010464,2]
[346613026,1735125537230,-500.0,0.00010464,2]
[346613027,1735125537290,-19270.64,0.00010464,2]
[346613028,1735125537349,-500.0,0.00010464,2]
[346613029,1735125537405,-500.0,0.00010464,2]
[346613030,1735125537472,-637.03,0.00010464,2]
[346613031,1735125537532,-1980.73,0.00010464,2]
[346613032,1735125537590,-500.0,0.00010464,2]
[346613033,1735125537652,-1038.04,0.00010464,2]
[346613034,1735125537712,-500.0,0.00010464,2]
[346613035,1735125537773,-500.0,0.00010464,2]
[346613036,1735125537838,-503.02,0.00010464,2]
[346613037,1735125537900,-1000.0,0.00010511,2]
[346613038,1735125537965,-250.0,0.00010665,2]
[346613039,1735125538023,-8492.37,0.00010682,2]
[346613040,1735125538084,-1101.0,0.00010682,2]
[346613041,1735125538141,-836.0,0.00010682,2]
[346613042,1735125538202,-3771.0,0.00010682,2]
[346613043,1735125538260,-1256.0,0.00010682,2]
[346613044,1735125538322,-3682.0,0.00010682,2]
[346613045,1735125538386,-232.956,0.00010682,2]
[346613046,1735125538445,-985.21,0.00010737,2]
[346613047,1735125538509,-500.0,0.00010737,2]
[346613048,1735125538570,-740.22,0.00010737,2]
[346613049,1735125538636,-707.5,0.00010737,2]
[346613050,1735125538696,-289.901841,0.00010737,2]
[346613051,1735125538760,-823.23,0.00010737,2]
[346613052,1735125538823,-261.980764,0.00010737,2]
[346613053,1735125538889,-1083.58,0.00010737,2]
[346613054,1735125538948,-535.91,0.00010737,2]
[346613055,1735125539012,-2291.31,0.00010737,2]
[346613056,1735125539076,-794.28,0.00010737,2]
[346613057,1735125539140,-1069.2,0.00010737,2]
[346613058,1735125539203,-3771.85,0.00010737,2]
[346613059,1735125539266,-2638.9,0.00010737,2]
[346613060,1735125539334,-500.0,0.00010737,2]
[346613061,1735125539395,-500.0,0.00010737,2]
[346613062,1735125539479,-4310.89,0.00010737,2]
[346613063,1735125539564,-703.41,0.00010737,2]
[346613064,1735125539638,-1703.35,0.00010737,2]
[346613065,1735125539694,-1668.51,0.00010737,2]
[346613066,1735125539748,-8728.74,0.00010737,2]
[346613067,1735125539802,-1468.11,0.00010737,2]
[346613068,1735125539855,-500.0,0.00010737,2]
[346613069,1735125539912,-699.53,0.00010737,2]
[346613070,1735125539972,-500.0,0.00010737,2]
[346613071,1735125540027,-500.0,0.00010737,2]
[346613072,1735125540088,-500.0,0.00010737,2]
[346613073,1735125540148,-741.72,0.00010737,2]
[346613074,1735125540216,-500.0,0.00010738,2]
[346613075,1735125540280,-500.0,0.00010738,2]
[346613076,1735125540339,-500.0,0.00010738,2]
[346613077,1735125540400,-500.0,0.00010738,2]
[346613078,1735125540458,-500.0,0.00010738,2]
[346613079,1735125540517,-500.0,0.00010738,2]
[346613080,1735125540576,-500.0,0.00010738,2]
[346613081,1735125540646,-500.0,0.00010738,2]
[346613082,1735125540707,-500.0,0.00010738,2]
[346613083,1735125540762,-500.0,0.00010738,2]
[346613084,1735125540813,-500.0,0.00010738,2]
[346613085,1735125540870,-500.0,0.00010738,2]
[346613086,1735125540921,-500.0,0.00010738,2]
[346613087,1735125540976,-500.0,0.00010738,2]
[346613088,1735125541030,-646.48,0.00010738,2]
[346613089,1735125541085,-565.65,0.00010738,2]
[346613090,1735125541140,-1060.51,0.00010738,2]
[346613091,1735125541195,-592.67,0.00010738,2]
[346613092,1735125541253,-546.3,0.00010738,2]
[346613093,1735125541313,-500.0,0.00010738,2]
[346613094,1735125541373,-500.0,0.00010738,2]
[346613095,1735125541433,-1114.22,0.00010738,2]
[346613096,1735125541491,-790.89,0.00010738,2]
[346613097,1735125541549,-586.71,0.00010738,2]
[346613098,1735125541607,-505.85,0.00010738,2]
[346613099,1735125541664,-500.0,0.00010738,2]
[346613100,1735125541724,-948.61,0.00010738,2]
[346613101,1735125541783,-500.0,0.00010738,2]
[346613102,1735125541841,-500.0,0.00010738,2]
[346613103,1735125541903,-500.0,0.00010738,2]
[346613104,1735125541967,-4156.42,0.00010738,2]
[346613105,1735125542035,-500.0,0.00010738,2]
[346613106,1735125542098,-500.0,0.00010738,2]
[346613107,1735125542160,-1150.6,0.00010738,2]
[346613108,1735125542222,-500.0,0.00010738,2]
[346613109,1735125542279,-500.0,0.00010738,2]
[346613110,1735125542338,-500.0,0.00010738,2]
[346613111,1735125542398,-1602.43,0.00010738,2]
[346613112,1735125542459,-602.52,0.00010738,2]
[346613113,1735125542521,-3226.7,0.00010738,2]
[346613114,1735125542585,-539.62,0.00010738,2]
[346613115,1735125542645,-1300.39,0.00010738,2]
[346613116,1735125542704,-1316.13,0.00010738,2]
[346613117,1735125542765,-1489.11,0.00010738,2]
[346613118,1735125542827,-736.26,0.00010738,2]
[346613119,1735125542893,-675.52,0.00010738,2]
[346613120,1735125542954,-500.0,0.00010738,2]
[346613121,1735125543017,-1509.74,0.00010738,2]
[346613122,1735125543087,-555.18,0.00010738,2]
[346613123,1735125543173,-2024.54,0.00010738,2]
[346613124,1735125543262,-2416.52,0.00010738,2]
[346613125,1735125543347,-905.73,0.00010738,2]
[346613126,1735125543421,-1209.74,0.00010738,2]
[346613127,1735125543497,-2119.07,0.00010738,2]
[346613128,1735125543567,-500.0,0.00010738,2]
[346613129,1735125543638,-573.85,0.00010738,2]
[346613130,1735125543703,-1720.47,0.00010738,2]
[346613131,1735125543771,-895.91,0.00010738,2]
[346613132,1735125543840,-903.93,0.00010738,2]
[346613133,1735125543907,-723.29,0.00010738,2]
[346613134,1735125543981,-769.14,0.00010738,2]
[346613135,1735125544051,-500.0,0.00010738,2]
[346613136,1735125544126,-500.0,0.00010738,2]
[346613137,1735125544197,-580.69,0.00010738,2]
[346613138,1735125544267,-500.0,0.00010738,2]
[346613139,1735125544345,-500.0,0.00010738,2]
[346613140,1735125544419,-500.0,0.00010738,2]
[346613141,1735125544491,-1231.21,0.00010738,2]
[346613142,1735125544564,-681.83,0.00010738,2]
[346613143,1735125544633,-1552.57,0.00010738,2]
[346613144,1735125544701,-677.32,0.00010738,2]
[346613145,1735125544767,-1301.82,0.00010738,2]
[346613146,1735125544834,-553.47,0.00010738,2]
[346613147,1735125544896,-833.28,0.00010738,2]
[346613148,1735125544962,-674.53,0.00010738,2]
[346613149,1735125545029,-537.62,0.00010738,2]
[346613150,1735125545093,-1109.05,0.00010738,2]
[346613151,1735125545156,-840.52,0.00010738,2]
[346613152,1735125545218,-500.0,0.00010738,2]
[346613153,1735125545282,-2578.19,0.00010738,2]
[346613154,1735125545345,-500.0,0.00010738,2]
[346613155,1735125545410,-19270.64,0.00010738,2]
[346613156,1735125545477,-500.0,0.00010738,2]
[346613157,1735125545543,-500.0,0.00010738,2]
[346613158,1735125545607,-637.03,0.00010738,2]
[346613159,1735125545670,-1980.73,0.00010738,2]
[346613160,1735125545732,-500.0,0.00010738,2]
[346613161,1735125545797,-1038.04,0.00010738,2]
[346613162,1735125545865,-500.0,0.00010738,2]
[346613163,1735125545929,-500.0,0.00010738,2]
[346613164,1735125545997,-503.02,0.00010738,2]
[346613165,1735125546060,-4117.017,0.00010739,2]
[346613166,1735125546123,-178.556,0.00010739,2]
[346613167,1735125546183,-150.0,0.00010959,2]
[346613168,1735125548375,500.0,0.0001019,2]
[346613169,1735125548500,500.0,0.00010464,2]
[346613170,1735125548751,500.0,0.00010738,2]
[346613171,1735125548821,530.67,9.916e-05,2]
[346613172,1735125549019,530.67,0.0001019,2]
[346613173,1735125549106,530.67,0.00010464,2]
[346613174,1735125549232,530.67,0.00010738,2]
[346613175,1735125550122,1528.24,0.0001019,2]
[346613176,1735125550207,1528.24,0.00010464,2]
[346613177,1735125550282,1528.24,0.00010738,2]